fUSD/lending_fUSD_20250304
["ID","MTS","AMOUNT","RATE_DAILY","PERIOD"]
[355285388,1741055440763,-170.64,0.000127,2]
[355285390,1741055440773,-245706.0,0.000127,2]
[355285392,1741055440783,-2620.44661984,0.00012718,2]
[355285394,1741055440792,-1546.42,0.00012726,2]
[355285396,1741055440803,-500.0,0.00012726,2]
[355285435,1741055440814,-1117.85,0.00012726,2]
[355285441,1741055441263,-2220.92,0.00012726,2]
[355285444,1741055441280,-511.82251172,0.00012726,2]
[355285446,1741055441290,-1577.85,0.00012726,2]
[355285448,1741055441299,-1874.33,0.00012726,2]
[355285450,1741055441308,-579.61,0.00012726,2]
[355285452,1741055441318,-2105.51,0.00012726,2]
[355285453,1741055441327,-1089.33,0.00012726,2]
[355285455,1741055441337,-2721.13,0.00012726,2]
[355285457,1741055441346,-2042.87,0.00012726,2]
[355285459,1741055441355,-1230.89,0.00012726,2]
[355285461,1741055441365,-516.329992,0.00012726,2]
[355285463,1741055441374,-1361.7,0.00012726,2]
[355285465,1741055441383,-3883.13,0.00012726,2]
[355285467,1741055441392,-500.0,0.00012726,2]
[355285469,1741055441402,-631.42,0.00012726,2]
[355285471,1741055441413,-580.93,0.00012726,2]
[355285473,1741055441422,-1945.3,0.00012726,2]
[355285475,1741055441437,-3094.09,0.00012726,2]
[355285476,1741055441447,-1493.91,0.00012726,2]
[355285478,1741055441457,-500.0,0.00012726,2]
[355285480,1741055441467,-266.77740347,0.00012726,2]
[355285482,1741055441479,-500.0,0.00012726,2]
[355285484,1741055441488,-676.58,0.00012726,2]
[355285486,1741055441498,-513.47274138,0.00012727,2]
[355285488,1741055441508,-1283.67,0.00012727,2]
[355285489,1741055441518,-500.0,0.00012727,2]
[355285491,1741055441529,-2688.6,0.00012727,2]
[355285493,1741055441538,-635.08,0.00012727,2]
[355285495,1741055441549,-1128.35,0.00012727,2]
[355285497,1741055441559,-910.39,0.00012727,2]
[355285499,1741055441572,-713.57,0.00012727,2]
[355285501,1741055441582,-1292.79,0.00012727,2]
[355285503,1741055441593,-1030.28,0.00012727,2]
[355285505,1741055441605,-510.70479284,0.00012727,2]
[355285507,1741055441615,-1484.5,0.00012727,2]
[355285509,1741055441626,-505.84995808,0.00012727,2]
[355285511,1741055441637,-758.77,0.00012727,2]
[355285513,1741055441646,-500.0,0.00012727,2]
[355285515,1741055441656,-852.72,0.00012727,2]
[355285517,1741055441666,-1280.02,0.00012727,2]
[355285519,1741055441675,-768.62,0.00012727,2]
[355285521,1741055441686,-500.0,0.00012727,2]
[355285523,1741055441695,-971.94,0.00012727,2]
[355285525,1741055441704,-674.93,0.00012727,2]
[355285527,1741055441714,-500.0,0.00012727,2]
[355285528,1741055441723,-500.0,0.00012727,2]
[355285530,1741055441732,-500.0,0.00012727,2]
[355285532,1741055441741,-1127.95,0.00012727,2]
[355285534,1741055441750,-1368.702888,0.00012727,2]
[355285536,1741055441759,-849.9,0.00012727,2]
[355285538,1741055441768,-500.0,0.00012727,2]
[355285540,1741055441779,-500.0,0.00012727,2]
[355285542,1741055441789,-821.12,0.00012727,2]
[355285544,1741055441798,-2112.309456,0.00012727,2]
[355285546,1741055441808,-1434.71,0.00012727,2]
[355285548,1741055441817,-500.0,0.00012727,2]
[355285550,1741055441827,-1551.45,0.00012727,2]
[355285551,1741055441837,-1445.79,0.00012727,2]
[355285553,1741055441846,-500.0,0.00012727,2]
[355285555,1741055441856,-500.0,0.00012727,2]
[355285557,1741055441866,-186.46212904,0.00012727,2]
[355285559,1741055441875,-636.29,0.00012727,2]
[355285561,1741055441884,-500.0,0.00012727,2]
[355285563,1741055441894,-500.0,0.00012727,2]
[355285565,1741055441903,-500.0,0.00012727,2]
[355285567,1741055441912,-500.0,0.00012727,2]
[355285569,1741055441921,-825.45,0.00012727,2]
[355285571,1741055441932,-500.0,0.00012727,2]
[355285573,1741055441942,-870.72,0.00012727,2]
[355285575,1741055441950,-1817.65,0.00012727,2]
[355285576,1741055441960,-790.65,0.00012727,2]
[355285577,1741055441969,-500.0,0.00012727,2]
[355285578,1741055441978,-1067.84,0.00012727,2]
[355285579,1741055441987,-836.09,0.00012727,2]
[355285580,1741055441997,-1334.88,0.00012727,2]
[355285581,1741055442007,-667.22,0.00012727,2]
[355285582,1741055442017,-1318.79,0.00012727,2]
[355285583,1741055442027,-1470.93,0.00012727,2]
[355285584,1741055442036,-500.0,0.00012727,2]
[355285585,1741055442045,-1208.44,0.00012727,2]
[355285587,1741055442055,-1532.25,0.00012727,2]
[355285589,1741055442065,-1823.01,0.00012727,2]
[355285591,1741055442074,-760.22,0.00012727,2]
[355285593,1741055442084,-938.94,0.00012727,2]
[355285595,1741055442093,-499.0,0.00012727,2]
[355285597,1741055442103,-1082.52,0.00012727,2]
[355285599,1741055442112,-500.0,0.00012727,2]
[355285601,1741055442121,-1531.13,0.00012727,2]
[355285603,1741055442131,-1204.04,0.00012727,2]
[355285605,1741055442140,-1535.59,0.00012727,2]
[355285607,1741055442150,-1539.38,0.00012727,2]
[355285609,1741055442160,-802.25,0.00012727,2]
[355285611,1741055442169,-1719.45,0.00012727,2]
[355285613,1741055442181,-531.79,0.00012727,2]
[355285615,1741055442191,-7820.44,0.00012727,2]
[355285617,1741055442201,-1800.27,0.00012727,2]
[355285619,1741055442212,-1211.39,0.00012727,2]
[355285621,1741055442221,-1005.69,0.00012727,2]
[355285623,1741055442231,-1430.78,0.00012727,2]
[355285625,1741055442241,-500.0,0.00012727,2]
[355285627,1741055442250,-2265.42,0.00012727,2]
[355285628,1741055442260,-1648.4,0.00012727,2]
[355285631,1741055442270,-4681.63,0.00012727,2]
[355285632,1741055442279,-500.0,0.00012727,2]
[355285634,1741055442289,-628.39,0.00012727,2]
[355285636,1741055442299,-1751.13,0.00012727,2]
[355285638,1741055442308,-2056.02,0.00012727,2]
[355285640,1741055442318,-557.53,0.00012727,2]
[355285642,1741055442327,-5462.62,0.00012727,2]
[355285644,1741055442337,-1468.83,0.00012727,2]
[355285646,1741055442347,-2165.59,0.00012727,2]
[355285648,1741055442356,-2266.97,0.00012727,2]
[355285650,1741055442365,-2771.62,0.00012727,2]
[355285652,1741055442375,-500.0,0.00012727,2]
[355285654,1741055442384,-1337.15,0.00012727,2]
[355285656,1741055442394,-501.92,0.00012727,2]
[355285658,1741055442404,-910.95,0.00012727,2]
[355285660,1741055442414,-1044.11,0.00012727,2]
[355285662,1741055442424,-2164.53,0.00012727,2]
[355285664,1741055442440,-5744.25,0.00012727,2]
[355285666,1741055442451,-1560.57,0.00012727,2]
[355285668,1741055442461,-1897.64,0.00012727,2]
[355285670,1741055442471,-1429.06,0.00012727,2]
[355285672,1741055442480,-6850.41,0.00012727,2]
[355285674,1741055442490,-7119.45,0.00012727,2]
[355285676,1741055442499,-1607.55,0.00012727,2]
[355285678,1741055442510,-1420.15,0.00012727,2]
[355285680,1741055442520,-2369.64,0.00012727,2]
[355285682,1741055442530,-3099.15,0.00012727,2]
[355285684,1741055442540,-2706.39,0.00012727,2]
[355285686,1741055442549,-2041.4,0.00012727,2]
[355285687,1741055442559,-1573.81,0.00012727,2]
[355285689,1741055442568,-500.0,0.00012727,2]
[355285691,1741055442578,-2499.51,0.00012727,2]
[355285693,1741055442587,-2733.38,0.00012727,2]
[355285695,1741055442597,-500.0,0.00012727,2]
[355285697,1741055442608,-1906.42,0.00012727,2]
[355285700,1741055442618,-2070.03,0.00012727,2]
[355285701,1741055442628,-513.73842885,0.00012727,2]
[355285703,1741055442637,-1268.18,0.00012727,2]
[355285705,1741055442647,-613.74,0.00012727,2]
[355285707,1741055442656,-2664.37,0.00012727,2]
[355285709,1741055442665,-2387.38,0.00012727,2]
[355285711,1741055442674,-849.35,0.00012727,2]
[355285714,1741055442685,-1193.34,0.00012727,2]
[355285715,1741055442695,-731.82,0.00012727,2]
[355285717,1741055442704,-2125.14,0.00012727,2]
[355285719,1741055442713,-6800.89,0.00012727,2]
[355285721,1741055442722,-500.0,0.00012727,2]
[355285723,1741055442731,-11355.57,0.00012727,2]
[355285725,1741055442741,-512.93643431,0.00012727,2]
[355285727,1741055442750,-730.73,0.00012727,2]
[355285729,1741055442759,-500.0,0.00012727,2]
[355285731,1741055442768,-1581.25,0.00012727,2]
[355285733,1741055442777,-1262.84,0.00012727,2]
[355285735,1741055442786,-2507.14,0.00012727,2]
[355285737,1741055442795,-500.0,0.00012727,2]
[355285739,1741055442805,-2121.42,0.00012727,2]
[355285741,1741055442816,-504.0470585,0.00012727,2]
[355285743,1741055442825,-500.0,0.00012727,2]
[355285745,1741055442835,-3244.86,0.00012727,2]
[355285747,1741055442845,-500.0,0.00012727,2]
[355285749,1741055442855,-1843.33,0.00012727,2]
[355285751,1741055442864,-12449.3,0.00012727,2]
[355285753,1741055442874,-1979.93,0.00012727,2]
[355285755,1741055442883,-1006.91,0.00012727,2]
[355285757,1741055442893,-1716.54,0.00012727,2]
[355285759,1741055442902,-1010.79,0.00012727,2]
[355285761,1741055442911,-644.43057106,0.00012727,2]
[355285763,1741055442920,-3271.75,0.00012727,2]
[355285764,1741055442931,-505.34576907,0.00012727,2]
[355285766,1741055442940,-505.84564708,0.00012727,2]
[355285768,1741055442950,-1767.1,0.00012727,2]
[355285770,1741055442959,-1262.93,0.00012727,2]
[355285772,1741055442969,-2282.98,0.00012727,2]
[355285774,1741055442979,-1583.48,0.00012728,2]
[355285776,1741055442988,-1174.21,0.00012728,2]
[355285778,1741055442997,-1044.51,0.00012728,2]
[355285780,1741055443007,-1439.16,0.00012728,2]
[355285782,1741055443017,-1319.48,0.00012728,2]
[355285784,1741055443027,-509.35725382,0.00012728,2]
[355285786,1741055443037,-763.4,0.00012728,2]
[355285788,1741055443046,-997.91,0.00012728,2]
[355285790,1741055443056,-463.92945258,0.00012728,2]
[355285792,1741055443066,-1344.77,0.00012728,2]
[355285794,1741055443076,-999.94,0.00012728,2]
[355285796,1741055443086,-502.3922422,0.00012728,2]
[355285798,1741055443095,-505.91882689,0.00012728,2]
[355285800,1741055443105,-531.63,0.00012728,2]
[355285802,1741055443115,-500.0,0.00012728,2]
[355285804,1741055443125,-500.0,0.00012728,2]
[355285806,1741055443135,-1033.01,0.00012728,2]
[355285808,1741055443146,-1541.06,0.00012728,2]
[355285810,1741055443157,-730.68,0.00012728,2]
[355285812,1741055443168,-888.85,0.00012728,2]
[355285814,1741055443182,-500.0,0.00012728,2]
[355285816,1741055443193,-2016.56,0.00012728,2]
[355285818,1741055443204,-1240.53,0.00012728,2]
[355285820,1741055443215,-1345.1,0.00012728,2]
[355285823,1741055443226,-1469.18,0.00012728,2]
[355285824,1741055443237,-1517.98,0.00012728,2]
[355285826,1741055443248,-770.38,0.00012728,2]
[355285828,1741055443260,-1016.6,0.00012728,2]
[355285830,1741055443272,-932.81,0.00012728,2]
[355285851,1741055443491,-1358.37,0.00012728,2]
[355285853,1741055443502,-511.54902742,0.00012728,2]
[355285855,1741055443513,-1467.9,0.00012728,2]
[355285857,1741055443523,-500.0,0.00012728,2]
[355285859,1741055443535,-1151.85,0.00012728,2]
[355285861,1741055443546,-804.66,0.00012728,2]
[355285863,1741055443560,-1200.23,0.00012728,2]
[355285865,1741055443570,-890.26,0.00012728,2]
[355285868,1741055443583,-832.1,0.00012728,2]
[355285870,1741055443592,-1286.62,0.00012728,2]
[355285871,1741055443602,-1080.05,0.00012728,2]
[355285873,1741055443611,-511.91040333,0.00012728,2]
[355285875,1741055443621,-500.0,0.00012728,2]
[355285877,1741055443631,-500.0,0.00012728,2]
[355285879,1741055443640,-656.7,0.00012728,2]
[355285881,1741055443650,-510.54999445,0.00012728,2]
[355285883,1741055443660,-1661.01,0.00012728,2]
[355285885,1741055443670,-879.73,0.00012728,2]
[355285887,1741055443685,-1189.13,0.00012728,2]
[355285889,1741055443695,-500.0,0.00012728,2]
[355285891,1741055443705,-500.0,0.00012728,2]
[355285893,1741055443715,-1828.43,0.00012728,2]
[355285895,1741055443725,-1527.19,0.00012728,2]
[355285897,1741055443735,-1388.02,0.00012728,2]
[355285899,1741055443745,-1688.32,0.00012728,2]
[355285901,1741055443755,-644.43,0.00012728,2]
[355285903,1741055443765,-500.0,0.00012728,2]
[355285905,1741055443774,-1232.89,0.00012728,2]
[355285907,1741055443785,-1311.4,0.00012728,2]
[355285909,1741055443795,-2558.47,0.00012728,2]
[355285911,1741055443805,-674.36,0.00012728,2]
[355285913,1741055443815,-1216.36,0.00012728,2]
[355285915,1741055443826,-808.87,0.00012728,2]
[355285917,1741055443835,-666.75,0.00012728,2]
[355285919,1741055443845,-3853.52,0.00012728,2]
[355285921,1741055443855,-500.0,0.00012728,2]
[355285923,1741055443864,-1111.38,0.00012728,2]
[355285925,1741055443874,-22702.96,0.00012728,2]
[355285927,1741055443884,-1916.73,0.00012728,2]
[355285929,1741055443894,-1042.44,0.00012728,2]
[355285931,1741055443903,-4309.59,0.00012728,2]
[355285933,1741055443912,-1030.9,0.00012728,2]
[355285934,1741055443921,-500.0,0.00012728,2]
[355285936,1741055443932,-1309.39,0.00012728,2]
[355285938,1741055443942,-641.15,0.00012728,2]
[355285940,1741055443951,-1505.43,0.00012728,2]
[355285942,1741055443961,-3052.18,0.00012728,2]
[355285944,1741055443970,-500.0,0.00012728,2]
[355285946,1741055443980,-500.0,0.00012728,2]
[355285947,1741055443990,-500.0,0.00012728,2]
[355285949,1741055443999,-1107.91,0.00012728,2]
[355285951,1741055444009,-1077.68,0.00012728,2]
[355285953,1741055444019,-500.0,0.00012728,2]
[355285955,1741055444028,-1437.23,0.00012728,2]
[355285957,1741055444040,-1797.89,0.00012728,2]
[355285959,1741055444050,-1729.57,0.00012728,2]
[355285961,1741055444059,-500.0,0.00012728,2]
[355285963,1741055444068,-1888.0,0.00012728,2]
[355285965,1741055444078,-3552.55,0.00012728,2]
[355285967,1741055444088,-2620.44661984,0.00012748,2]
[355285969,1741055444097,-818.59,0.00012771,2]
[355285971,1741055444107,-639.34665385,0.00012771,2]
[355285973,1741055444116,-2771.44,0.00012771,2]
[355285975,1741055444125,-500.0,0.00012771,2]
[355285977,1741055444135,-1090.53,0.00012771,2]
[355285979,1741055444145,-500.0,0.00012771,2]
[355285981,1741055444155,-1134.1,0.00012771,2]
[355285983,1741055444164,-512.14356426,0.00012771,2]
[355285985,1741055444174,-500.0,0.00012771,2]
[355285987,1741055444185,-971.45,0.00012771,2]
[355285989,1741055444195,-1563.72,0.00012771,2]
[355285991,1741055444204,-1326.77,0.00012771,2]
[355285993,1741055444213,-1161.74,0.00012771,2]
[355285995,1741055444223,-500.0,0.00012771,2]
[355285997,1741055444233,-1540.34,0.00012771,2]
[355285998,1741055444242,-1806.94,0.00012771,2]
[355286001,1741055444253,-1014.42,0.00012771,2]
[355286003,1741055444263,-1269.03,0.00012771,2]
[355286004,1741055444272,-500.0,0.00012771,2]
[355286006,1741055444282,-1648.87,0.00012771,2]
[355286008,1741055444291,-1019.98,0.00012771,2]
[355286010,1741055444301,-2075.47,0.00012771,2]
[355286012,1741055444311,-1868.16,0.00012771,2]
[355286014,1741055444321,-1798.08,0.00012771,2]
[355286016,1741055444331,-1354.16,0.00012771,2]
[355286018,1741055444342,-1941.72,0.00012771,2]
[355286020,1741055444352,-1047.85,0.00012771,2]
[355286022,1741055444362,-868.13,0.00012771,2]
[355286024,1741055444372,-889.19,0.00012771,2]
[355286026,1741055444381,-1538.14,0.00012771,2]
[355286028,1741055444391,-2158.68,0.00012771,2]
[355286030,1741055444401,-847.96,0.00012771,2]
[355286032,1741055444412,-1769.75,0.00012771,2]
[355286034,1741055444421,-1124.57,0.00012771,2]
[355286036,1741055444432,-504.19676604,0.00012771,2]
[355286038,1741055444444,-1343.57,0.00012771,2]
[355286040,1741055444454,-532.81,0.00012771,2]
[355286042,1741055444464,-2061.45,0.00012771,2]
[355286044,1741055444473,-596.01,0.00012771,2]
[355286046,1741055444483,-1405.05,0.00012771,2]
[355286048,1741055444493,-1528.52,0.00012771,2]
[355286050,1741055444504,-500.0,0.00012771,2]
[355286052,1741055444515,-1144.9,0.00012771,2]
[355286053,1741055444525,-2620.44661984,0.00012779,2]
[355286088,1741055444712,-500.0,0.0001278,2]
[355286093,1741055444729,-500.0,0.0001278,2]
[355286097,1741055444739,-500.0,0.0001278,2]
[355286100,1741055444749,-754.49,0.0001278,2]
[355286103,1741055444760,-500.16,0.0001278,2]
[355286106,1741055444771,-500.0,0.0001278,2]
[355286109,1741055444781,-500.0,0.0001278,2]
[355286111,1741055444792,-615.49,0.0001278,2]
[355286114,1741055444802,-857.34,0.0001278,2]
[355286117,1741055444813,-500.0,0.0001278,2]
[355286120,1741055444825,-500.0,0.0001278,2]
[355286124,1741055444837,-500.0,0.0001278,2]
[355286128,1741055444849,-500.0,0.0001278,2]
[355286132,1741055444860,-201.88143114,0.0001278,2]
[355286134,1741055444872,-500.0,0.0001278,2]
[355286137,1741055444882,-724.23,0.0001278,2]
[355286139,1741055444893,-500.0,0.0001278,2]
[355286142,1741055444903,-654.45,0.0001278,2]
[355286145,1741055444914,-508.29394748,0.0001278,2]
[355286148,1741055444924,-863.06,0.0001278,2]
[355286150,1741055444943,-500.0,0.0001278,2]
[355286153,1741055444953,-553.99,0.0001278,2]
[355286156,1741055444963,-582.6046072,0.0001278,2]
[355286158,1741055444974,-500.0,0.0001278,2]
[355286161,1741055444984,-529.69,0.0001278,2]
[355286164,1741055444994,-889.65,0.0001278,2]
[355286167,1741055445004,-500.0,0.0001278,2]
[355286169,1741055445014,-779.18,0.0001278,2]
[355286172,1741055445024,-1049.3,0.0001278,2]
[355286175,1741055445033,-524.19091584,0.0001278,2]
[355286178,1741055445042,-500.0,0.0001278,2]
[355286180,1741055445052,-500.0,0.0001278,2]
[355286183,1741055445062,-901.65,0.0001278,2]
[355286186,1741055445072,-294.10361358,0.0001278,2]
[355286189,1741055445082,-500.0,0.0001278,2]
[355286190,1741055445091,-500.0,0.0001278,2]
[355286193,1741055445100,-891.83,0.0001278,2]
[355286196,1741055445110,-585.83,0.0001278,2]
[355286199,1741055445119,-500.0,0.0001278,2]
[355286201,1741055445130,-500.0,0.0001278,2]
[355286204,1741055445139,-500.0,0.0001278,2]
[355286207,1741055445149,-500.0,0.0001278,2]
[355286210,1741055445159,-642.37704854,0.0001278,2]
[355286213,1741055445168,-603.51016435,0.0001278,2]
[355286216,1741055445181,-674.51,0.0001278,2]
[355286218,1741055445192,-646.49,0.0001278,2]
[355286221,1741055445202,-555.61,0.0001278,2]
[355286224,1741055445212,-704.58,0.0001278,2]
[355286226,1741055445222,-500.0,0.0001278,2]
[355286228,1741055445231,-505.25,0.0001278,2]
[355286230,1741055445242,-500.0,0.0001278,2]
[355286232,1741055445252,-500.0,0.0001278,2]
[355286234,1741055445261,-618.21,0.0001278,2]
[355286236,1741055445271,-799.18,0.0001278,2]
[355286237,1741055445280,-500.0,0.0001278,2]
[355286239,1741055445289,-515.11779693,0.0001278,2]
[355286241,1741055445299,-677.69,0.0001278,2]
[355286243,1741055445309,-500.0,0.0001278,2]
[355286245,1741055445319,-787.88,0.0001278,2]
[355286247,1741055445328,-500.0,0.0001278,2]
[355286249,1741055445339,-180.93982709,0.0001278,2]
[355286251,1741055445348,-500.0,0.0001278,2]
[355286253,1741055445359,-404.56919972,0.0001278,2]
[355286255,1741055445369,-702.26,0.0001278,2]
[355286257,1741055445379,-233.58520876,0.0001278,2]
[355286259,1741055445389,-175.29045356,0.0001278,2]
[355286261,1741055445399,-747.55,0.0001278,2]
[355286263,1741055445413,-888.21,0.0001278,2]
[355286265,1741055445425,-500.0,0.0001278,2]
[355286267,1741055445438,-758.72,0.0001278,2]
[355286269,1741055445448,-500.0,0.0001278,2]
[355286271,1741055445459,-500.0,0.0001278,2]
[355286273,1741055445470,-621.7,0.0001278,2]
[355286275,1741055445480,-821.53,0.0001278,2]
[355286277,1741055445491,-450.4980611,0.0001278,2]
[355286279,1741055445501,-500.0,0.0001278,2]
[355286281,1741055445512,-500.0,0.0001278,2]
[355286282,1741055445522,-500.0,0.0001278,2]
[355286284,1741055445532,-946.05,0.0001278,2]
[355286287,1741055445543,-500.0,0.0001278,2]
[355286290,1741055445553,-536.96772147,0.0001278,2]
[355286292,1741055445562,-506.53,0.0001278,2]
[355286294,1741055445573,-500.0,0.0001278,2]
[355286297,1741055445583,-500.0,0.0001278,2]
[355286299,1741055445594,-897.74,0.0001278,2]
[355286301,1741055445604,-825.5,0.0001278,2]
[355286303,1741055445614,-500.0,0.0001278,2]
[355286305,1741055445624,-590.5,0.0001278,2]
[355286307,1741055445634,-500.0,0.0001278,2]
[355286309,1741055445644,-878.8,0.0001278,2]
[355286311,1741055445654,-500.0,0.0001278,2]
[355286313,1741055445664,-520.69687891,0.0001278,2]
[355286315,1741055445674,-1015.5,0.0001278,2]
[355286317,1741055445686,-500.0,0.0001278,2]
[355286319,1741055445696,-500.0,0.0001278,2]
[355286321,1741055445705,-1088.34,0.0001278,2]
[355286323,1741055445715,-507.34172081,0.0001278,2]
[355286325,1741055445725,-1024.36,0.0001278,2]
[355286327,1741055445735,-645.77,0.0001278,2]
[355286329,1741055445746,-1116.58,0.0001278,2]
[355286330,1741055445755,-500.0,0.0001278,2]
[355286332,1741055445765,-503.62078387,0.0001278,2]
[355286334,1741055445775,-505.37121139,0.0001278,2]
[355286336,1741055445785,-507.91463527,0.0001278,2]
[355286338,1741055445795,-500.0,0.0001278,2]
[355286340,1741055445805,-513.32762091,0.0001278,2]
[355286342,1741055445815,-500.0,0.0001278,2]
[355286344,1741055445825,-505.5722481,0.0001278,2]
[355286346,1741055445839,-513.89668751,0.0001278,2]
[355286348,1741055445849,-507.47094271,0.0001278,2]
[355286350,1741055445859,-798.59,0.0001278,2]
[355286352,1741055445869,-500.0,0.0001278,2]
[355286354,1741055445880,-509.6206617,0.0001278,2]
[355286356,1741055445891,-413.25779719,0.0001278,2]
[355286358,1741055445902,-514.05266172,0.0001278,2]
[355286360,1741055445913,-480.31150164,0.0001278,2]
[355286362,1741055445924,-774.03,0.0001278,2]
[355286364,1741055445938,-680.0,0.0001278,2]
[355286366,1741055445949,-500.0,0.0001278,2]
[355286368,1741055445959,-516.20911924,0.0001278,2]
[355286370,1741055445969,-923.43,0.0001278,2]
[355286372,1741055445979,-924.91,0.0001278,2]
[355286374,1741055445990,-774.23,0.0001278,2]
[355286376,1741055446000,-507.61369958,0.0001278,2]
[355286378,1741055446010,-511.40693438,0.0001278,2]
[355286381,1741055446020,-518.5288148,0.0001278,2]
[355286384,1741055446031,-500.55097181,0.0001278,2]
[355286387,1741055446042,-500.0,0.0001278,2]
[355286388,1741055446052,-2013.52,0.0001278,2]
[355286390,1741055446062,-500.0,0.0001278,2]
[355286392,1741055446073,-521.58202655,0.0001278,2]
[355286394,1741055446085,-627.18923667,0.0001278,2]
[355286397,1741055446096,-664.46,0.0001278,2]
[355286399,1741055446106,-2094.32,0.0001278,2]
[355286402,1741055446116,-587.12,0.0001278,2]
[355286405,1741055446126,-506.28160583,0.0001278,2]
[355286408,1741055446135,-2663.46,0.0001278,2]
[355286411,1741055446146,-524.28385345,0.0001278,2]
[355286415,1741055446155,-214.55226663,0.0001278,2]
[355286418,1741055446165,-536.29650909,0.0001278,2]
[355286422,1741055446175,-433.89507327,0.0001278,2]
[355286425,1741055446189,-500.0,0.0001278,2]
[355286428,1741055446200,-635.84,0.0001278,2]
[355286430,1741055446210,-507.59815081,0.0001278,2]
[355286433,1741055446220,-574.41,0.0001278,2]
[355286435,1741055446230,-500.0,0.0001278,2]
[355286438,1741055446241,-504.35160027,0.0001278,2]
[355286441,1741055446252,-518.4982936,0.0001278,2]
[355286443,1741055446262,-500.75087183,0.0001278,2]
[355286445,1741055446272,-2705.54,0.0001278,2]
[355286447,1741055446282,-501.01653459,0.0001278,2]
[355286449,1741055446292,-241.41401957,0.0001278,2]
[355286451,1741055446301,-501.39969358,0.0001278,2]
[355286453,1741055446312,-500.0,0.0001278,2]
[355286455,1741055446322,-504.33120891,0.0001278,2]
[355286456,1741055446332,-28780.21,0.0001278,2]
[355286457,1741055446342,-502.36399907,0.0001278,2]
[355286458,1741055446352,-509.06954734,0.0001278,2]
[355286459,1741055446361,-513.18385238,0.0001278,2]
[355286460,1741055446371,-505.96419832,0.0001278,2]
[355286461,1741055446381,-500.0,0.0001278,2]
[355286462,1741055446391,-510.03030477,0.0001278,2]
[355286463,1741055446401,-1383.48,0.0001278,2]
[355286464,1741055446415,-503.26500093,0.0001278,2]
[355286465,1741055446425,-521.10830479,0.0001278,2]
[355286466,1741055446439,-500.0,0.0001278,2]
[355286467,1741055446450,-996.88,0.0001278,2]
[355286468,1741055446461,-711.93,0.0001278,2]
[355286469,1741055446471,-690.92,0.0001278,2]
[355286470,1741055446481,-522.4882188,0.0001278,2]
[355286471,1741055446491,-783.73,0.0001278,2]
[355286472,1741055446501,-2009.96,0.0001278,2]
[355286473,1741055446511,-500.0,0.0001278,2]
[355286475,1741055446521,-508.28510542,0.0001278,2]
[355286476,1741055446531,-512.01694048,0.0001278,2]
[355286478,1741055446541,-720.52,0.0001278,2]
[355286480,1741055446551,-500.0,0.0001278,2]
[355286482,1741055446561,-4083.98,0.0001278,2]
[355286484,1741055446571,-500.0,0.0001278,2]
[355286486,1741055446581,-538.84530611,0.0001278,2]
[355286488,1741055446590,-500.0,0.0001278,2]
[355286490,1741055446600,-513.11662268,0.0001278,2]
[355286492,1741055446610,-32181.92,0.0001278,2]
[355286494,1741055446620,-500.0,0.0001278,2]
[355286496,1741055446630,-518.71908619,0.0001278,2]
[355286498,1741055446640,-987.71,0.0001278,2]